Cogmind - Beta 11.1 @@@ ROGUE MODE // 2022.11.03 @ 01:02:49 Player: Pogmind Result: Destroyed by D-53 Grenadier with Mini Grenade Launcher Performance ------------- Evolutions (0) 0 Regions Visited (2) 400 Robots Destroyed (20) 100 Value Destroyed (446) 446 Prototype IDs (0) 0 Alien Tech Used (0) 0 Bonus (0) 0 TOTAL SCORE: 946 Bonus ------- None Cogmind --------- Core Integrity 0/250 Matter 265/300 Energy 98/100 System Corruption 3% Temperature Cool (35) Movement Core (50) Location -10/Mines Parts ------- > --- POWER (1) -------- (None) > --- PROPULSION (2) --- (None) > --- UTILITY (2) ------ (None) > --- WEAPON (2) ------- (None) > --- INVENTORY (5) ---- Improved Treads Compact Wheel Assault Rifle Assault Rifle Hammer Peak State ------------ > --- POWER ------------ Ion Engine > --- PROPULSION ------- Light Treads Light Treads > --- UTILITY ---------- Large Storage Unit Light Armor Plating > --- WEAPON ----------- Heavy EM Pulse Gun Heavy EM Pulse Gun > --- INVENTORY -------- Improved Treads Improved Treads Improved Treads Improved Treads Compact Wheel High-capacity Battery Light Armor Plating Light Armor Plating Particle Gun Beam Cannon Assault Rifle Assault Rifle Assault Rifle Assault Rifle Hammer [Rating: 11] Favorites ----------- Power Ion Engine Engine Ion Engine Propulsion Light Treads Treads Light Treads Utility Light Armor Plating Device Seismic Detector Storage Large Storage Unit Protection Light Armor Plating Weapon Heavy EM Pulse Gun Energy Gun Heavy EM Pulse Gun Energy Cannon Beam Cannon Ballistic Gun Assault Rifle Build | -11 -10 -10 ------- Run | Scr Mat Min Slots Evolved . | . . . Power . | . . . Propulsion . | . . . Utility . | . . . Weapon . | . . . Parts Attached 28 | 8 13 7 Power 2 | 1 1 . Engine 2 | 1 1 . Core . | . . . Reactor . | . . . Propulsion 4 | 2 . 2 Treads 4 | 2 . 2 Leg . | . . . Wheel . | . . . Hover . | . . . Flight . | . . . Utility 5 | 2 2 1 Device 1 | 1 . . Storage 2 | 1 1 . Processor . | . . . Hackware . | . . . Protection 2 | . 1 1 Artifact . | . . . Weapon 17 | 3 10 4 Energy Gun 9 | 1 6 2 Energy Cannon 1 | . . 1 Ballistic Gun 7 | 2 4 1 Ballistic Cannon . | . . . Launcher . | . . . Special Weapon . | . . . Impact Weapon . | . . . Slashing Weapon . | . . . Piercing Weapon . | . . . Special Melee Weapon . | . . . Unidentified Prototypes . | . . . Parts Lost 12 | . 3 9 Power 2 | . 1 1 Propulsion 3 | . . 3 Utility 2 | . . 2 Weapon 5 | . 2 3 Highest Loss Streak 9 | . 1 9 To Critical Strikes . | . . . Average Slot Usage (%) 99 | . 99 98 Engine 13 | . 14 13 Treads 27 | . 28 27 Device 2 | . 2 . Storage 14 | . 14 14 Protection 11 | . 11 13 Energy Gun 15 | . 20 . Ballistic Gun 12 | . 7 27 Naked Turns 2 | . . 2 Heaviest Build 34 | 11 34 32 Greatest Support 40 | 40 40 40 Greatest Overweight (x) . | . . . Average Overweight (x) . | . . . Largest Inventory Capacity 15 | 8 15 15 Average Capacity 11 | 7 11 14 Most Carried 15 | 4 15 15 Average Carried 9 | 2 8 14 Final Capacity 15 | 8 15 5 Final Carried 15 | 4 15 5 Class Distribution -------------------- 100% | Mutant Dominant Class ---------------- Mutant | -10/Materials Mutant | -10/Mines Resources | -11 -10 -10 ----------- Run | Scr Mat Min Matter Collected 442 | 219 223 . Remotely . | . . . Salvage Created 682 | 28 618 36 Parts 43 | 5 38 . Haulers Intercepted 1 | . 1 . Recyclers Shooed 2 | . 1 1 Parts Field Recycled . | . . . Retrieved Matter . | . . . Parts Self-Destructed . | . . . Prevented . | . . . Kills | -11 -10 -10 ------- Run | Scr Mat Min Combat Hostiles Destroyed 17 | . 15 2 Guns 17 | . 15 2 Classes Destroyed 6 | 1 4 1 Tunneler 1 | 1 . . Hauler 1 | . 1 . Watcher 3 | . 3 . Swarmer 6 | . 6 . Grunt 9 | . 9 . Assembled 2 | . . 2 Best Kill Streak 4 | 1 4 2 Combat Bots Only 4 | . 4 2 Max Kills in Single Turn 1 | 1 1 1 Gunslinging . | . . . Exploded . | . . . Melee . | . . . Uniques/NPCs Destroyed . | . . . Combat | -11 -10 -10 -------- Run | Scr Mat Min Damage Taken 1550 | . 480 1070 Core 250 | . 94 156 Absorbed by Shields . | . . . Core Remaining (%) 100 | 100 . . Volleys Fired 53 | 1 45 7 Largest 2 | 2 2 2 Hottest 90 | 40 90 90 Shots Fired 102 | 2 89 11 Gun 102 | 2 89 11 Cannon . | . . . Launcher . | . . . Special . | . . . Kinetic 39 | 2 32 5 Thermal . | . . . Explosive . | . . . Electromagnetic 63 | . 57 6 Robot Hit Streak 10 | 1 9 10 Robot Miss Streak 3 | . 3 2 Penetration Max . | . . . Secondary Targets . | . . . Shots Hit Robots 65 | 1 56 8 Core Hits 34 | 1 29 4 Critical Kills . | . . . Critical Parts Destroyed . | . . . Critical Strikes 1 | . 1 . Corrupt 1 | . 1 . Melee Attacks . | . . . Impact . | . . . Slashing . | . . . Piercing . | . . . Sneak Attacks . | . . . Combat Hostiles . | . . . Follow-up Attacks . | . . . Damage Inflicted 1030 | 13 857 160 Guns 911 | 10 773 128 Cannons . | . . . Explosions 57 | . 57 . Melee . | . . . Ramming 62 | 3 27 32 Kinetic 312 | 10 248 54 Thermal 57 | . 57 . Explosive . | . . . Electromagnetic 599 | . 525 74 Impact . | . . . Slashing . | . . . Piercing . | . . . Highest Corruption 3 | . . 3 Average Corruption 3 | . . 3 Corruption Purged . | . . . Corruption Blocked . | . . . Overload Shots . | . . . Overflow Damage . | . . . Projectiles . | . . . Explosions . | . . . Melee . | . . . Knockbacks . | . . . Impact . | . . . Kinetic . | . . . Secondary . | . . . Self-Inflicted Damage . | . . . Shots . | . . . Rammed 11 | 3 5 3 Targets Rammed 11 | 3 5 3 Kicked . | . . . Crushed . | . . . Highest Temperature 198 | . 198 119 Average Temperature 62 | . 62 64 Received Heat Transfer 388 | . 168 220 Siege Activations . | . . . Robots Corrupted 1 | . 1 . Combat Hostiles . | . . . Parts Fried 3 | . 3 . Impact Corruptions . | . . . Robots Melted . | . . . Combat Hostiles . | . . . Parts Melted . | . . . Heat Transferred 50 | . 50 . Parts Sabotaged . | . . . Parts Stolen . | . . . Parts Stripped . | . . . Power Chain Reactions 1 | . 1 . Missiles Intercepted . | . . . Alert | -11 -10 -10 ------- Run | Scr Mat Min Peak Influence 247 | 5 247 39 Initial 39 | . 3 39 Average 84 | 3 105 27 Maximum Alert Level 1 | . 1 . Low Security (%) 98 | 100 97 100 Level 1 1 | . 2 . Level 2 . | . . . Level 3 . | . . . Level 4 . | . . . Level 5 . | . . . High Security . | . . . Max Security . | . . . Squads Dispatched 3 | . 3 . Investigation 3 | . 3 . Extermination . | . . . Reinforcement . | . . . Assault . | . . . Garrison . | . . . Intercept . | . . . Searches Triggered . | . . . Construction Impeded . | . . . Haulers Reinforced . | . . . Active Scanning Responses . | . . . Cargo Convoy Interrupts . | . . . Stealth | -11 -10 -10 --------- Run | Scr Mat Min Distress Signals 1 | . 1 . Communications Jammed . | . . . Distress Signals . | . . . Times Spotted 45 | . 25 20 Peak Tracking Total 15 | . 4 15 Tactical Retreats 4 | . 3 1 Traps | -11 -10 -10 ------- Run | Scr Mat Min Traps Triggered 1 | . 1 . Indirectly . | . . . Trap Hack Attempts . | . . . Triggered . | . . . Disarmed . | . . . Reprogrammed . | . . . Reused . | . . . Traps Extracted . | . . . Installed . | . . . Triggered . | . . . Machines | -11 -10 -10 ---------- Run | Scr Mat Min Machines Disabled 1 | . 1 . Max in Single Turn 1 | . 1 . Machines Sabotaged . | . . . Garrisons Compromised . | . . . Overloaded Fab Kills . | . . . Hacking | -11 -10 -10 --------- Run | Scr Mat Min Machines Accessed 6 | . 6 . Terminals 4 | . 4 . Fabricators . | . . . Repair Stations . | . . . Recycling Units 2 | . 2 . Scanalyzers . | . . . Garrison Access . | . . . Total Hacks 23 | . 23 . Successful 13 | . 13 . Failed 10 | . 10 . Catastrophic . | . . . Database Lockouts . | . . . Manual 22 | . 22 . Terminals 20 | . 20 . Fabricators . | . . . Repair Stations . | . . . Recycling Units 3 | . 3 . Scanalyzers . | . . . Garrison Access . | . . . Terminal Hacks 8 | . 8 . Part Schematic 3 | . 3 . Robot Analysis 3 | . 3 . Locate Traps 1 | . 1 . Hauler Manifests 1 | . 1 . Fabricator Hacks . | . . . Repair Station Hacks . | . . . Recycling Unit Hacks . | . . . Scanalyzer . | . . . Garrison Access Hacks . | . . . Unauthorized Hacks 5 | . 5 . Terminals 3 | . 3 . Botnet 2 | . 2 . Operators 1 | . 1 . Fabricators . | . . . Repair Stations . | . . . Recycling Units 2 | . 2 . Tunnel 2 | . 2 . Scanalyzers . | . . . Garrison Access . | . . . Data Cores Recovered . | . . . Used . | . . . Hacking Detections 5 | . 5 . Full Trace Events . | . . . Feedback Events . | . . . Feedback Blocked . | . . . Robot Schematics Acquired . | . . . Robots Built . | . . . Authchips . | . . . Time . | . . . Total Robot Build Rating . | . . . Part Schematics Acquired 3 | . 3 . Parts Built . | . . . Authchips . | . . . Time . | . . . Total Part Build Rating . | . . . Parts Repaired . | . . . Time . | . . . Parts Recycled . | . . . Recycled Matter . | . . . Retrieved Matter . | . . . Retrieved Components . | . . . Parts Scanalyzed . | . . . Part Schematics Acquired . | . . . Parts Damaged . | . . . Bothacking | -11 -10 -10 ------------ Run | Scr Mat Min Used RIF Installer . | . . . Robots Hacked . | . . . Non-combat . | . . . Combat . | . . . Robot Hacks Applied . | . . . Relay Couplers Released . | . . . Fabnet Peak Effective % . | . . . Robots Rewired . | . . . Allies Hacked . | . . . Hacks Repelled . | . . . Allies | -11 -10 -10 -------- Run | Scr Mat Min Total Allies 2 | . . 2 Largest Group 2 | . . 2 Highest-Rated Group 45 | . . 45 Highest-Rated Ally 31 | . . 31 Total Orders . | . . . Ally Attacks 5 | . . 5 Total Damage 43 | . . 43 Kills 2 | . . 2 Allies Corrupted . | . . . Allies Melted . | . . . Intel | -11 -10 -10 ------- Run | Scr Mat Min Robot Analysis Total 3 | . 3 . Derelict Logs Recovered 1 | . . 1 Drone Launches . | . . . Drone Recoveries . | . . . Exploration | -11 -10 -10 ------------- Run | Scr Mat Min Turns Passed 2532 | 99 1866 567 Spaces Moved 1409 | 49 1024 336 Core 8 | 2 . 6 Treads 1401 | 47 1024 330 Legs . | . . . Wheels . | . . . Hover . | . . . Flight . | . . . Fastest Speed 50 | 50 160 50 Average Speed 159 | 155 160 158 Slowest Speed 160 | 160 160 160 Overloaded Moves . | . . . Propulsion Burnouts . | . . . Robots Hopped . | . . . Cave-ins Triggered . | . . . Exploration Rate (%) 55 | 3 99 65 Regions Visited 2 Branch Regions 1 Pre-discovered Areas 2 | . 2 . Known Exits Taken . | . . . Unknown Exits Taken 2 | 1 1 . Scrap Searched 2 | . . 2 Spaces Dug . | . . . Terrain Destroyed . | . . . Melee . | . . . Projectile . | . . . AOE . | . . . Terrain Rammed . | . . . Walls Destroyed . | . . . Machines Disabled . | . . . Actions | -11 -10 -10 --------- Run | Scr Mat Min Total 1587 | 66 1163 358 Wait 56 | . 53 3 Move 1408 | 49 1023 336 Hop . | . . . Pick Up 21 | 4 16 1 Fast Attach 11 | 8 3 . Attach 8 | . 3 5 Detach 3 | 1 2 . Swap 9 | . 7 2 Drop 8 | 1 6 1 Fire 53 | 1 45 7 Melee . | . . . Ram . | . . . Kick . | . . . Crush 10 | 2 5 3 Escape Stasis . | . . . Rewire . | . . . Trap . | . . . Miscellaneous . | . . . Route ------- -11/Scrapyard -10/Materials (discovered 4 exits: [*Mat x3] / [*Min]) -10/Mines (discovered 2 exits: [*Mat x2]) History --------- Turn | Location | Event 10 | -11/Scrapyard | Discovered new exit (range 16) 100 | -11/Scrapyard | Entered Materials 315 | -10/Materials | Build established: Mutant 542 | -10/Materials | Discovered new exit (range 10) 934 | -10/Materials | Discovered new exit (range 13) 1298 | -10/Materials | Discovered new exit (range 16) 1491 | -10/Materials | Discovered new exit (range 15) 1966 | -10/Materials | Entered Mines 1971 | -10/Mines | Discovered new exit (range 15) 2277 | -10/Mines | Learned Materials interactive machine intel 2346 | -10/Mines | Discovered new exit (range 7) 2467 | -10/Mines | Assembled infested the area 2472 | -10/Mines | Assisted by a Guerilla fighting off Assembled 2517 | -10/Mines | Core integrity fell below 50% 2527 | -10/Mines | Core integrity fell below 20% 2531 | -10/Mines | Released all parts (3) 2533 | -10/Mines | Destroyed by D-53 Grenadier with Mini Grenade Launcher Last Messages --------------- 02479_ 2W-VF1(g) destroyed. 02479_ as-00202 destroyed. 02508_ Lgt. Treads destroyed. 02508_ System corrupted by crushing effect (+3). 02509_ as-83308 destroyed. 02512_ Ion Engine destroyed. 02513_ Lgt. Armor Plating destroyed. 02516_ Destroyed Asb. Hover Unit. 02516_ as-07369 destroyed. 02517_ Hvy. EM Pulse Gun destroyed. 02522_ Lgt. Armor Plating destroyed. 02526_ Imp. Treads destroyed. 02526_ Lgt. Treads destroyed. 02528_ Slammed into as-51039. 02530_ Assault Rifle destroyed. 02531_ Released Lrg. Storage Unit. 02531_ Released Imp. Treads. 02531_ Released Beam Cannon. 02531_ Extracted 69 energy. 02532_ Critical hit (Burn: +80). Map ----- +----------------------------------------------------+ | ## #####?????????????????????????????????? | | #?????????????????????????????????? | | #?????????????????????????????????? | | # ### ## #?????????????????????????????????? | | ## ##?#### #?????????????????????????????????? | | ?## #?????# #?????????????????????????????????? | | ??# #?????# #?????????????????????????????????? | | ??# #?????# #??????????????????????????????#### | | ??# ##???### ##########??????########??????## | | ??## #????# % ######?# #?????## | | ??## #????# #########]!% % #?# #???### | | ??# ##???# =#???????###### #?# #??## | | ?## ###?#%%#????????????# ### #??# | | ?# ### #????????????# """ #??# | | ?# ## #????????????##### """ #??## ## # | | ?# #????????????????# """ #???##??# # | | ?## ## #????????????????# #??????## # | | ??## ### #????????????????#### ##????### | | ???#######?# ##??????????????????# #????## | | ?????####?## ##?????????????????# ###### | | ###### ### #???????????#####?# | | #??????????## ### | | % #???????#### ############# | | ##### #??????## ##?????????## | | ???## ##????## =[ #??????????## | | ???# #???## @## !!= #???????????# | | ??# #??## ######!%% ##??????????## | | ??# ### #?## ##???##[]##???????????# | | ??# #?## #### ##???####????????????# | | ??# ##?## #? #???????????????????## | | ??# #??# #????????????????????## | | ??# ##??# d #?????????????????????# | | ??## ###???# d #????????????????????## | | ???###??????# ##?????????????????### | | ????????????? ## #????????????????## | | ??????????????## ## #???????????????## | | ???????????????##?# %= ##??????????????## | | ????????????????#%% !% ####???????????????# | | ???????????????# ##??????????????????# | | ???????????????# #???????????????????## | | ???????????????# ##????????????????????## | | ???????????????# % #???????????????????????## | | ???????????????## #"?????????????????????????# | | ????????????????#% ##?????????????????????????# | | ????????????????" %???????????????????????????# | | ??????????????? ????????????????????????????## | | ??????????????###!?????????????????????????????### | | ????????????????#????????????????????????????????? | | ?????????????????????????????????????????????????? | | ?????????????????????????????????????????????????? | +----------------------------------------------------+ Best States ------------- Heat Dissipation 25 Energy Generation 10 Energy Capacity 250 Matter Stores 300 Matter Capacity 300 Sight Range 16 Terrain Scan Density 10 Armor Coverage 150 Evasion (%) 40 Recoil Reduction 2 Item Schematics ----------------- Huge Storage Unit | -10/Materials | Hacked Signal Interpreter | -10/Materials | Hacked Lgt. Treads | -10/Materials | Hacked Robot Schematics ------------------ None Fabricated ------------ Nothing Alien Tech Used ----------------- None Achievements -------------- None Challenges ------------ None Game ------ Seed IntegratedThiefBrace Manual? 0 Play Time 00:17:07 Cumulative 565.8 hours Start 2022.11.03 @ 00:46:41 End 2022.11.03 @ 01:02:49 Sessions 1 Manual Loads 0 Difficulty Rogue Special Mode None Game No. 60 Rogue 50 Adventurer 5 Explorer 5 Win Type - Total 23 Types 6/6/4/0/3/1/2/0/1 Lore% 88 Gallery% 93 Achievement% 83 Wizard Run 0 Options --------- ASCII 0 Keyboard 1 Movement Arrows Keybinds 0 Fullscreen 2 Font 18/SmallcapsGlow Map View 76x50 Tactical HUD 1 Map Filters NONE Filters NONE Steam 1 RUN: c1ab7c26-c30d-4b60-8870-44eb9f92ce8a